Cogmind - Beta 11 X4 @@@ ROGUE MODE // 2021.05.24 @ 22:50:37 Player: Terminus Result: Self-destructed Performance ------------- Evolutions (6) 3000 Regions Visited (25) 5000 Robots Destroyed (301) 1505 Value Destroyed (10237) 10237 Prototype IDs (221) 4420 Alien Tech Used (0) 0 Bonus (7797) 7797 TOTAL SCORE: 31959 Bonus ------- High Alert Combat Kills 845 Follower Combat Kills 534 Met Data Miner 300 Used Data Conduit 3000 Met Imprinter 300 Met Warlord at Base 500 MAIN.C Attacked Warlord 500 Warlord Defense Kill 1902 Friendly Fire -84 Cogmind --------- Core Integrity 912/1150 Matter 289/300 Energy 99/100 System Corruption 0% Temperature Cool (0) Movement Core (50) Location -4/Factory Parts ------- > --- POWER (1) -------- (None) > --- PROPULSION (4) --- Improved Antigrav System > --- UTILITY (10) ----- Advanced Targeting Computer Hacking Suite Makeshift Hacking Suite > --- WEAPON (4) ------- (None) > --- INVENTORY (5) ---- Superbattery (1500) Experimental Armor Integrity Analyzer Helical Railgun Helical Railgun Advanced Remote Datajack Peak State ------------ > --- POWER ------------ Neutrino Core > --- PROPULSION ------- Combat Gravmag System Combat Gravmag System Cooled Antigrav System Cooled Antigrav System > --- UTILITY ---------- Advanced Cooling System Superbattery Advanced Targeting Computer Experimental Targeting Computer Hacking Suite Hacking Suite Makeshift Hacking Suite System Purifier > --- WEAPON ----------- Helical Railgun Advanced Remote Datajack Vortex Lance Vortex Lance > --- INVENTORY -------- Experimental Armor Integrity Analyzer Advanced Kinecellerator Hardened Medium Armor Plating Vortex Catalyst Activator [Rating: 119] Favorites ----------- Power Cooled Ion Engine Engine Cooled Ion Engine Power Core Neutrino Core Reactor Light Particle Reactor Propulsion Improved Medium Treads Treads Improved Medium Treads Wheel Armored Huge Wheel Hover Unit Combat Gravmag System Flight Unit Field Propulsion Drive Utility Cooling System Device Cooling System Storage Huge Storage Unit Processor Advanced Targeting Computer Hackware Hacking Suite Protection Medium Armor Plating Weapon Enhanced Autogun Energy Gun Medium Laser Energy Cannon Advanced Beam Cannon Ballistic Gun Enhanced Autogun Ballistic Cannon Heavy Flak Cannon Launcher Heavy Rocket Launcher Special Weapon Advanced Remote Datajack Slashing Weapon Great Axe Piercing Weapon Heavy Pick Build | -11 -10 -10 -9 -9 -9 -8 -8 -7 -7 -7 -7 -6 -6 -6 -6 -6 -6 -6 -5 -5 -5 -5 -5 -4 -4 ------- Run | Scr Mat Min Mat Min Exi Min Mat Fac Low Low Zio Pro Fac Was Fac Low Low Dat Pro Fac Upp Upp War Pro Fac Slots Evolved 12 | . . . 2 . . . 2 2 . . . . 2 . . . . . . 2 . . . . 2 Power . | . . . . . . . . . . . . . . . . . . . . . . . . . . Propulsion 2 | . . . . . . . 1 . . . . . 1 . . . . . . . . . . . . Utility 8 | . . . 1 . . . 1 2 . . . . 1 . . . . . . 1 . . . . 2 Weapon 2 | . . . 1 . . . . . . . . . . . . . . . . 1 . . . . . Parts Attached 286 | 6 10 9 29 4 4 . 32 27 8 4 5 2 43 8 19 1 5 5 14 12 2 1 33 . 3 Power 18 | 1 1 1 2 . . . 1 4 . 1 . . 2 1 1 . . . . 2 . . 1 . . Engine 15 | 1 1 1 2 . . . 1 4 . . . . 2 1 1 . . . . 1 . . . . . Core 2 | . . . . . . . . . . 1 . . . . . . . . . 1 . . . . . Reactor 1 | . . . . . . . . . . . . . . . . . . . . . . . 1 . . Propulsion 54 | 2 3 1 4 . 1 . 14 4 1 . . . 8 1 . . . . 1 7 . . 5 . 2 Treads 36 | 2 3 1 4 . 1 . 14 4 1 . . . 4 1 . . . . 1 . . . . . . Leg . | . . . . . . . . . . . . . . . . . . . . . . . . . . Wheel 4 | . . . . . . . . . . . . . 4 . . . . . . . . . . . . Hover 13 | . . . . . . . . . . . . . . . . . . . . 7 . . 5 . 1 Flight 1 | . . . . . . . . . . . . . . . . . . . . . . . . . 1 Utility 99 | 1 3 1 7 1 3 . 6 10 3 1 5 1 19 3 11 1 1 2 6 3 1 . 9 . 1 Device 36 | . . . 3 . . . 1 4 1 1 . 1 9 2 6 . . 1 1 1 . . 5 . . Storage 8 | 1 1 . 1 . 2 . . 1 . . . . . . . . . . 1 1 . . . . . Processor 8 | . . . . . . . . 1 1 . 3 . . 1 . . . . . . 1 . 1 . . Hackware 8 | . . . . . . . 1 . . . . . 2 . 1 . . . 3 1 . . . . . Protection 39 | . 2 1 3 1 1 . 4 4 1 . 2 . 8 . 4 1 1 1 1 . . . 3 . 1 Artifact . | . . . . . . . . . . . . . . . . . . . . . . . . . . Weapon 115 | 2 3 6 16 3 . . 11 9 4 2 . 1 14 3 7 . 4 3 7 . 1 1 18 . . Energy Gun 9 | . 1 2 2 . . . . . . . . . . . . . . . . . . . 4 . . Energy Cannon 1 | . . . 1 . . . . . . . . . . . . . . . . . . . . . . Ballistic Gun 57 | 2 1 . 10 2 . . 10 7 3 1 . 1 8 3 3 . 1 . 1 . 1 . 3 . . Ballistic Cannon 13 | . 1 1 2 . . . . . . . . . . . 2 . 1 . 4 . . . 2 . . Launcher 17 | . . 3 1 1 . . 1 2 1 1 . . 2 . . . 1 . . . . 1 3 . . Special Weapon 2 | . . . . . . . . . . . . . 1 . . . . . . . . . 1 . . Impact Weapon . | . . . . . . . . . . . . . . . . . . . . . . . . . . Slashing Weapon 9 | . . . . . . . . . . . . . 3 . 2 . 1 2 1 . . . . . . Piercing Weapon 7 | . . . . . . . . . . . . . . . . . . 1 1 . . . 5 . . Special Melee Weapon . | . . . . . . . . . . . . . . . . . . . . . . . . . . Unidentified Prototypes 14 | . . . 4 . 1 . 2 1 1 . 2 . . . . . . . . . . . 3 . . Corrupted Parts 4 | . . . . . . . . . . . . . . . . . . . . . 1 . 3 . . System Corruption 11 | . . . . . . . . . . . . . . . . . . . . . 3 . 8 . . Parts Lost 60 | . 2 3 4 1 . . 2 7 4 1 . 2 3 1 4 . 3 3 5 . 1 . 7 4 3 Power 7 | . . . . . . . . 1 1 . . . 1 . 1 . . 1 . . . . 2 . . Propulsion 13 | . . 1 . . . . . 1 1 . . 1 1 . . . . 1 2 . . . 1 3 1 Utility 25 | . 1 1 2 . . . 1 4 1 1 . . . . 1 . 2 1 3 . 1 . 3 1 2 Weapon 15 | . 1 1 2 1 . . 1 1 1 . . 1 1 1 2 . 1 . . . . . 1 . . Highest Loss Streak 5 | . 1 2 1 1 . . 2 5 2 1 . 2 2 1 2 . 2 3 3 . 1 . 3 3 3 Average Slot Usage (%) 93 | . 98 99 99 100 100 100 99 99 94 93 100 92 95 91 85 82 85 71 61 53 78 88 96 52 29 Engine 6 | . 14 14 11 11 11 11 9 6 1 . . . 4 5 6 6 6 5 . 1 . . . . . Core 1 | . . . . . . . . . . 2 7 7 1 . . . . . . 1 5 5 4 . . Treads 17 | . 28 28 21 22 22 22 26 22 23 23 23 15 15 12 6 6 6 5 4 . . . . . . Wheel 1 | . . . . . . . . . . . . . 6 6 6 6 6 6 1 . . . . . . Hover 1 | . . . . . . . . . . . . . . . . . . . . 14 23 23 22 11 2 Device 9 | . . . 10 11 11 11 8 11 7 5 7 10 13 13 12 13 13 12 3 1 5 5 10 . . Storage 8 | . 14 14 11 11 11 11 9 7 7 7 7 7 6 6 6 6 6 6 11 3 5 5 5 5 . Processor 7 | . . . . . . . . 7 12 15 15 15 13 20 20 20 18 13 6 5 9 11 5 11 5 Hackware 5 | . . . . . . . 9 7 1 . . . 11 6 5 . . . 13 19 20 17 17 17 14 Protection 8 | . 12 13 10 11 11 11 8 10 15 15 15 11 1 . . 2 6 10 6 . . . 4 . 2 Energy Gun 1 | . 9 14 4 . . . . . . . . . . . . . . . . . . . 3 . . Ballistic Gun 19 | . 17 . 24 32 33 33 26 22 22 22 23 23 17 19 16 13 3 . . . 1 5 1 . . Ballistic Cannon 1 | . . 13 2 . . . . . . . . . . . 2 6 12 . 2 . . . . . . Naked Turns . | . . . . . . . . . . . . . . . . . . . . . . . . . . Heaviest Build 131 | 13 27 27 66 66 66 66 66 119 118 122 122 122 116 108 116 123 131 127 117 23 27 34 56 8 7 Greatest Support 90 | 40 46 46 46 43 43 43 66 90 82 82 82 82 82 28 28 70 70 28 70 56 53 53 60 41 7 Greatest Overweight (x) 32 | . . . 1 1 1 1 1 1 1 1 1 2 6 3 4 4 4 4 32 . . . 1 . . Average Overweight (x) 1 | . . . . 1 1 1 . . 1 1 1 1 3 3 3 3 3 3 3 . . . . . . Largest Inventory Capacity 25 | 8 10 10 20 20 20 20 20 25 25 25 25 25 25 25 25 25 25 25 25 5 5 5 5 5 5 Average Capacity 20 | 7 9 10 19 20 20 20 20 23 25 25 25 25 25 25 25 25 25 25 24 5 5 5 5 5 5 Most Carried 25 | 2 10 10 20 20 20 20 20 23 25 25 25 25 25 25 25 24 24 25 22 5 5 5 5 5 5 Average Carried 19 | 1 8 9 17 19 19 20 19 20 24 24 24 24 24 24 23 23 22 23 17 4 4 4 4 5 5 Final Capacity 25 | 8 10 10 20 20 20 20 20 25 25 25 25 25 25 25 25 25 25 25 5 5 5 5 5 5 5 Final Carried 25 | 2 10 9 20 19 20 20 20 23 25 25 25 25 25 23 23 24 22 22 5 5 5 5 5 5 5 Class Distribution -------------------- 26% | Tank 17% | Scavenger-Tank 16% | Hacker-Mutant 10% | Mutant 9% | Gunner 7% | Skirmisher 5% | Commander-Tank 4% | Hacker-Skirmisher Dominant Class ---------------- Mutant | -10/Materials Mutant | -10/Mines Tank | -9/Materials Tank | -9/Mines Commander-Tank | -9/Exiles Commander-Tank | -8/Mines Scavenger-Tank | -8/Materials Skirmisher | -7/Factory Tank | -7/Lower Caves Tank | -7/Lower Caves Tank | -7/Zion Tank | -6/Proximity Caves Hacker-Skirmisher | -6/Factory Gunner | -6/Waste Gunner | -6/Factory Gunner | -6/Lower Caves Gunner | -6/Lower Caves Mutant | -6/Data Miner Hacker-Mutant | -5/Proximity Caves Hacker-Mutant | -5/Factory Hacker-Mutant | -5/Upper Caves Hacker-Mutant | -5/Upper Caves Hacker-Mutant | -5/Warlord Hacker-Mutant | -4/Proximity Caves Hacker-Mutant | -4/Factory Resources | -11 -10 -10 -9 -9 -9 -8 -8 -7 -7 -7 -7 -6 -6 -6 -6 -6 -6 -6 -5 -5 -5 -5 -5 -4 -4 ----------- Run | Scr Mat Min Mat Min Exi Min Mat Fac Low Low Zio Pro Fac Was Fac Low Low Dat Pro Fac Upp Upp War Pro Fac Matter Collected 9140 | 276 438 175 932 182 . 46 1377 1183 348 182 50 61 849 442 818 110 550 . 225 205 217 53 417 . 4 Remotely . | . . . . . . . . . . . . . . . . . . . . . . . . . . Salvage Created 12964 | 87 782 244 1481 154 . 40 2304 2281 524 204 . . 1150 1604 830 56 390 . 170 155 . 24 429 55 . Parts 669 | 4 51 40 100 11 . 2 121 139 25 6 . . 58 27 32 5 15 . 11 5 . 2 12 3 . Haulers Intercepted 18 | . 2 . 6 . . . 6 2 1 . . . . . . . . . . 1 . . . . . Recyclers Shooed 7 | . 2 . . 1 . . 3 . . . . . 1 . . . . . . . . . . . . Parts Field Recycled . | . . . . . . . . . . . . . . . . . . . . . . . . . . Retrieved Matter . | . . . . . . . . . . . . . . . . . . . . . . . . . . Parts Self-Destructed 207 | . . . . . . . . . 24 5 2 12 . . . 5 10 . 11 . . 2 135 1 . Prevented 32 | . . . . . . . . . 1 . . . . . . . . . . . 3 . 28 . . Kills | -11 -10 -10 -9 -9 -9 -8 -8 -7 -7 -7 -7 -6 -6 -6 -6 -6 -6 -6 -5 -5 -5 -5 -5 -4 -4 ------- Run | Scr Mat Min Mat Min Exi Min Mat Fac Low Low Zio Pro Fac Was Fac Low Low Dat Pro Fac Upp Upp War Pro Fac Combat Hostiles Destroyed 233 | . 18 16 29 5 . 1 32 38 11 4 . . 12 6 17 3 11 . 7 . . 4 17 2 . Melee 6 | . . . . . . . . . . . . . . . . . . . 2 . . . 2 2 . Guns 152 | . 18 3 20 2 . 1 32 32 8 1 . . 9 6 12 2 3 . 1 . . . 2 . . Cannons 27 | . . 5 6 . . . . . . . . . . . 5 1 6 . 4 . . . . . . AOE 47 | . . 8 3 3 . . . 5 3 3 . . 3 . . . 2 . . . . 4 13 . . Classes Destroyed 25 | 1 5 2 3 . . . 2 4 . 2 . . . 1 2 . . . 1 . . . 2 . . Worker 14 | . . 1 4 . . . 3 2 . . . . 2 . . . . . . 2 . . . . . Builder 4 | . . . . . . . 1 1 . . . . 1 . 1 . . . . . . . . . . Tunneler 2 | . . 1 . . . . . 1 . . . . . . . . . . . . . . . . . Hauler 18 | . 2 . 6 . . . 6 2 1 . . . . . . . . . . 1 . . . . . Recycler 12 | 1 1 . 1 1 . . 4 . . . . . 3 . 1 . . . . . . . . . . Minesweeper 1 | . . . . . . . . . . 1 . . . . . . . . . . . . . . . Mechanic 1 | . . . 1 . . . . . . . . . . . . . . . . . . . . . . Operator 4 | . 1 . 1 . . . 1 1 . . . . . . . . . . . . . . . . . Watcher 15 | . 2 . 4 . . . 4 3 . . . . 1 . 1 . . . . . . . . . . Swarmer 52 | . 6 14 4 3 . . 6 . 4 3 . . . . . 3 . . 4 . . 4 . 1 . Saboteur 1 | . . . . . . . . . . . . . . . . . . . . . . . 1 . . Grunt 94 | . 12 2 14 1 . 1 15 21 5 . . . 2 . 6 . 6 . . . . . 9 . . Brawler 3 | . . . . . . . . 1 . . . . . . . . 1 . . . . . 1 . . Duelist 6 | . . . 2 1 . . . 1 . . . . 1 . 1 . . . . . . . . . . Protector 3 | . . . . . . . . 1 . . . . . . . . . . . . . . 2 . . Sentry 24 | . . . 9 . . . 10 2 . 1 . . 2 . . . . . . . . . . . . Demolisher 4 | . . . . . . . . . . . . . . . 2 . . . . . . . 2 . . Specialist 4 | . . . . . . . . 3 . . . . . . . . . . . . . . 1 . . Hunter 5 | . . . . . . . 1 3 1 . . . . . . . . . . . . . . . . Programmer 23 | . . . . . . . . 6 1 . . . 7 . 5 . 1 . 2 . . . . 1 . Behemoth 1 | . . . . . . . . . . . . . . . . . . . 1 . . . . . . Compactor 6 | . . . . . . . . . . . . . . 6 . . . . . . . . . . . Striker 1 | . . . . . . . . . . . . . . . . . . . . . . . 1 . . Samaritan 1 | . . . . . . . . . . 1 . . . . . . . . . . . . . . . Assembled 3 | . . . . . . . . . . . . . . . 3 . . . . . . . . . . Thug 2 | . . . . . . . . . . . . . . . . . 2 . . . . . . . . Butcher 1 | . . . . . . . . . . . . . . . . . 1 . . . . . . . . Best Kill Streak 15 | 1 7 7 5 4 . 1 4 15 5 3 . . 4 3 4 3 4 . 2 1 . 4 13 1 . Combat Bots Only 13 | . 5 6 4 3 . 1 4 12 5 3 . . 3 3 4 3 4 . 2 . . 4 13 1 . Max Kills in Single Turn 5 | 1 1 5 2 2 . 1 2 5 3 3 . . 2 1 2 1 2 . 1 1 . 3 3 1 . Gunslinging 1 | . . . . . . . . . . . . . . . 1 . . . . . . . . . . Exploded 4 | . . 4 2 2 . . . 2 3 3 . . 1 . . . 2 . . . . 3 3 . . Melee 1 | . . . . . . . . . . . . . . . . . . . 1 . . . 1 1 . Uniques/NPCs Destroyed . | . . . . . . . . . . . . . . . . . . . . . . . . . . Combat | -11 -10 -10 -9 -9 -9 -8 -8 -7 -7 -7 -7 -6 -6 -6 -6 -6 -6 -6 -5 -5 -5 -5 -5 -4 -4 -------- Run | Scr Mat Min Mat Min Exi Min Mat Fac Low Low Zio Pro Fac Was Fac Low Low Dat Pro Fac Upp Upp War Pro Fac Damage Taken 13331 | . 627 434 1132 129 . . 1393 1907 606 299 . 208 691 57 1137 90 386 792 1008 14 143 107 1214 386 571 Core 1620 | . 59 35 149 . . . 123 169 45 22 . . 33 57 94 32 . . 178 . 23 . 222 141 238 Absorbed by Shields . | . . . . . . . . . . . . . . . . . . . . . . . . . . Reduced by Siege Mode 44 | . . . . . . . . . . . . . . . 25 . 5 . 14 . . . . . . Core Remaining (%) 68 | 100 . 62 . . . 62 77 . . . . 66 . . . . . . 53 . . . . 61 . Volleys Fired 628 | 4 68 24 95 14 . 1 119 95 21 10 . 4 45 22 33 5 21 . 13 . . 2 32 . . Largest 3 | 2 2 2 3 3 . 3 3 3 3 3 . 3 3 3 3 3 3 . 3 . . 1 2 . . Hottest 156 | 40 70 85 156 69 . 69 75 84 81 81 . 78 84 84 109 109 134 . 134 . . 39 76 . . Shots Fired 1608 | 8 136 43 274 33 . 3 357 274 58 26 . 11 110 63 92 13 49 . 22 . . 2 34 . . Gun 1433 | 8 136 19 224 29 . 3 357 268 57 24 . 11 103 63 76 8 17 . 4 . . . 26 . . Cannon 135 | . . 19 48 . . . . . . . . . . . 16 5 28 . 18 . . . 1 . . Launcher 39 | . . 5 2 4 . . . 6 1 2 . . 6 . . . 4 . . . . 2 7 . . Special 1 | . . . . . . . . . . . . . 1 . . . . . . . . . . . . Kinetic 1423 | 8 107 19 194 29 . 3 357 268 57 24 . 11 103 63 92 13 45 . 22 . . . 8 . . Thermal 126 | . 29 19 78 . . . . . . . . . . . . . . . . . . . . . . Explosive 20 | . . 5 2 4 . . . . 1 2 . . . . . . 4 . . . . 2 . . . Electromagnetic 12 | . . . . . . . . 6 . . . . 6 . . . . . . . . . . . . Entropic 26 | . . . . . . . . . . . . . . . . . . . . . . . 26 . . Robot Hit Streak 31 | 2 14 4 15 12 . 1 17 15 12 14 . 14 26 14 31 4 14 . 21 . . 1 6 . . Robot Miss Streak 8 | 2 3 2 7 5 . 1 5 7 8 3 . 3 4 5 7 5 6 . 6 . . 1 3 . . Penetration Max . | . . . . . . . . . . . . . . . . . . . . . . . . . . Secondary Targets 21 | . . . 2 . . . 8 7 2 . . . . . 2 . . . . . . . . . . Max Gunslinging Chain 1 | . . . 1 . . . 1 1 1 . . . . . 1 . . . . . . . . . . Shots Hit Robots 1160 | 3 96 25 176 16 . 1 219 214 45 21 . 11 80 62 79 10 43 1 22 5 . 1 25 5 . Core Hits 853 | 2 42 24 93 9 . 1 89 153 49 23 . 6 56 74 111 9 54 . 26 3 . 4 23 2 . Critical Kills 5 | . 2 . 1 . . . 1 1 . . . . . . . . . . . . . . . . . Critical Parts Destroyed 5 | 1 1 . 1 . . . 2 . . . . . . . . . . . . . . . . . . Critical Strikes 17 | 1 4 1 4 . . . 4 1 . . . . . . . . . . . . . . 1 1 . Burn 2 | . 1 1 . . . . . . . . . . . . . . . . . . . . . . . Destroy 12 | 1 3 . 3 . . . 4 1 . . . . . . . . . . . . . . . . . Blast 1 | . . . 1 . . . . . . . . . . . . . . . . . . . . . . Sunder 2 | . . . . . . . . . . . . . . . . . . . . . . . 1 1 . Melee Attacks 113 | . . . . . . . . . . . . . 13 . 4 . 1 30 22 20 . 11 6 6 . Impact . | . . . . . . . . . . . . . . . . . . . . . . . . . . Slashing 51 | . . . . . . . . . . . . . 13 . 4 . 1 14 19 . . . . . . Piercing 50 | . . . . . . . . . . . . . . . . . . 16 3 20 . 11 . . . Entropic 12 | . . . . . . . . . . . . . . . . . . . . . . . 6 6 . Sneak Attacks 6 | . . . . . . . . . . . . . 1 . . . . 1 . 4 . . . . . Combat Hostiles . | . . . . . . . . . . . . . . . . . . . . . . . . . . Follow-up Attacks . | . . . . . . . . . . . . . . . . . . . . . . . . . . Damage Inflicted 32162 | 47 1029 820 2813 603 . 16 3642 5159 1159 648 . 231 2402 1815 2124 143 1592 112 767 507 . 482 5611 440 . Guns 19132 | 47 996 158 1932 274 . 16 3583 4108 881 482 . 231 1784 1815 1498 76 312 . 91 . . . 848 . . Cannons 2741 | . . 161 589 . . . . . . . . . . . 624 67 730 . 570 . . . . . . Explosions 8455 | . . 501 220 328 . . . 1030 278 166 . . 483 . . . 550 . . . . 482 4417 . . Melee 1636 | . . . . . . . . . . . . . 125 . . . . 112 106 507 . . 346 440 . Ramming 198 | . 33 . 72 1 . . 59 21 . . . . 10 . 2 . . . . . . . . . . Kinetic 19772 | 47 701 161 1651 274 . 16 3583 4108 881 482 . 231 1784 1815 2122 143 1042 . 661 . . . 70 . . Thermal 1731 | . 295 158 870 . . . . 408 . . . . . . . . . . . . . . . . . Explosive 2741 | . . 501 220 328 . . . . 278 166 . . 216 . . . 550 . . . . 482 . . . Electromagnetic 889 | . . . . . . . . 622 . . . . 267 . . . . . . . . . . . . Impact . | . . . . . . . . . . . . . . . . . . . . . . . . . . Slashing 205 | . . . . . . . . . . . . . 125 . . . . . 80 . . . . . . Piercing 645 | . . . . . . . . . . . . . . . . . . 112 26 507 . . . . . Entropic 5981 | . . . . . . . . . . . . . . . . . . . . . . . 5541 440 . Highest Corruption 44 | . 1 1 . . . . . 2 2 2 2 . 3 38 42 42 43 43 44 1 4 4 8 6 . Average Corruption 15 | . 1 1 . . . . . 1 2 2 2 . 2 20 38 42 42 43 43 1 1 4 5 6 . Corruption Purged 2 | . . . . . . . . . . . . . . . . . . . . . . . 2 . . Effects 514 | . 1 2 . . . . . 12 9 7 2 . 29 27 152 52 55 17 111 1 1 5 29 2 . Message Errors 95 | . . 1 . . . . . 6 3 2 2 . 4 3 24 4 6 4 25 1 . 4 6 . . Matter Fused 82 | . . . . . . . . . . . . . 3 7 20 8 10 4 22 . 1 1 6 . . Heat Flow Errors 49 | . . . . . . . . 1 2 1 . . 7 2 18 4 3 . 6 . . . 4 1 . Energy Discharges 56 | . . . . . . . . 2 2 2 . . 4 1 17 4 4 2 13 . . . 5 . . Parts Rejected 4 | . . . . . . . . . . . . . . 1 . . . 2 . . . . 1 . . Data Loss (minor) 57 | . 1 1 . . . . . 3 2 2 . . 10 . 17 5 3 . 9 . . . 3 1 . Data Loss (major) 17 | . . . . . . . . . . . . . . 2 6 . 1 . 4 . . . 4 . . Misfires 12 | . . . . . . . . . . . . . . . 3 3 3 . 3 . . . . . . Alerts 6 | . . . . . . . . . . . . . . 2 1 2 . . 1 . . . . . . Misdirections 113 | . . . . . . . . . . . . . . 7 36 17 20 5 28 . . . . . . Weapon Failures 23 | . . . . . . . . . . . . . 1 2 10 5 5 . . . . . . . . Overload Shots . | . . . . . . . . . . . . . . . . . . . . . . . . . . Overflow Damage 737 | . . 7 5 18 . . . 20 . . . . . . . . . 52 . 144 . 24 389 78 . Projectiles . | . . . . . . . . . . . . . . . . . . . . . . . . . . Explosions 419 | . . 7 5 18 . . . 20 . . . . . . . . . . . . . 24 345 . . Melee 318 | . . . . . . . . . . . . . . . . . . 52 . 144 . . 44 78 . Knockbacks 46 | . . 1 6 . . . 1 . . . . . . . 13 2 15 . 8 . . . . . . Impact 1 | . . . . . . . 1 . . . . . . . . . . . . . . . . . . Kinetic 42 | . . 1 4 . . . . . . . . . . . 12 2 15 . 8 . . . . . . Secondary 3 | . . . 2 . . . . . . . . . . . 1 . . . . . . . . . . Self-Inflicted Damage 103 | . . 46 . . . . . 57 . . . . . . . . . . . . . . . . . Shots 6 | . . 2 . . . . . 4 . . . . . . . . . . . . . . . . . Rammed 32 | . 10 . 5 1 . 1 8 4 . . . . 2 . 1 . . . . . . . . . . Targets Rammed 36 | . 10 . 8 1 . 1 9 4 . . . . 2 . 1 . . . . . . . . . . Kicked . | . . . . . . . . . . . . . . . . . . . . . . . . . . Crushed 4 | . . . 3 . . . 1 . . . . . . . . . . . . . . . . . . Highest Temperature 265 | . 265 234 258 . . . 5 188 162 124 . 7 216 166 232 191 168 . 257 . . . 238 246 . Average Temperature 66 | . 48 91 72 . . . 1 24 42 42 . 6 62 70 81 74 97 . 87 . . . 106 125 . Received Heat Transfer 3160 | . 261 69 444 18 . . 558 687 171 84 . 60 99 . 262 . 144 102 12 . . . 162 27 . Effects 2 | . 2 . . . . . . . . . . . . . . . . . . . . . . . . Energy Bleed 2 | . 2 . . . . . . . . . . . . . . . . . . . . . . . . Siege Activations 6 | . . . . . . . . . . . . . . . 4 . 1 . 1 . . . . . . Total Turns 84 | . . . . . . . . . . . . . . . 68 . 7 . 9 . . . . . . Longest Duration 24 | . . . . . . . . . . . . . . . 24 . 7 . 9 . . . . . . Robots Corrupted 1 | . . . . . . . . 1 . . . . . . . . . . . . . . . . . Combat Hostiles 1 | . . . . . . . . 1 . . . . . . . . . . . . . . . . . Parts Fried 3 | . . . . . . . . 1 . . . . 2 . . . . . . . . . . . . Impact Corruptions . | . . . . . . . . . . . . . . . . . . . . . . . . . . Robots Melted . | . . . . . . . . . . . . . . . . . . . . . . . . . . Combat Hostiles . | . . . . . . . . . . . . . . . . . . . . . . . . . . Parts Melted 5 | . 3 . 2 . . . . . . . . . . . . . . . . . . . . . . Heat Transferred 3607 | . 962 531 1614 . . . . 500 . . . . . . . . . . . . . . . . . Parts Sabotaged 4 | . . . . . . . . . . . . . . . . . . . . . . . 4 . . Parts Stolen . | . . . . . . . . . . . . . . . . . . . . . . . . . . Parts Stripped . | . . . . . . . . . . . . . . . . . . . . . . . . . . Power Chain Reactions 4 | . . . . . . . . 4 . . . . . . . . . . . . . . . . . Missiles Intercepted . | . . . . . . . . . . . . . . . . . . . . . . . . . . Alert | -11 -10 -10 -9 -9 -9 -8 -8 -7 -7 -7 -7 -6 -6 -6 -6 -6 -6 -6 -5 -5 -5 -5 -5 -4 -4 ------- Run | Scr Mat Min Mat Min Exi Min Mat Fac Low Low Zio Pro Fac Was Fac Low Low Dat Pro Fac Upp Upp War Pro Fac Peak Influence 1050 | 5 426 279 367 210 . 38 423 1050 . . . . 198 17 133 . . . . 479 . . . . 68 Initial 191 | . 3 84 46 135 . . . 191 . . . . . 17 . . . . . . . . . . 25 Average 181 | 2 216 189 235 79 . 3 165 542 . . . . 39 3 38 . . . . 119 . . . . 44 Maximum Alert Level 3 | . 2 1 1 1 . . 2 3 . . . . . . . . . . . 2 . . . . . Low Security (%) 62 | 100 31 36 32 87 . 100 64 19 . . . . 100 100 100 . . . . 78 . . . . 100 Level 1 27 | . 68 63 67 12 . . 34 13 . . . . . . . . . . . . . . . . . Level 2 3 | . . . . . . . . 19 . . . . . . . . . . . 21 . . . . . Level 3 6 | . . . . . . . . 46 . . . . . . . . . . . . . . . . . Level 4 . | . . . . . . . . . . . . . . . . . . . . . . . . . . Level 5 . | . . . . . . . . . . . . . . . . . . . . . . . . . . High Security . | . . . . . . . . . . . . . . . . . . . . . . . . . . Max Security . | . . . . . . . . . . . . . . . . . . . . . . . . . . Squads Dispatched 56 | . 5 . 6 1 . . 4 12 . . . . 9 . 14 . . . . 4 . . . . 1 Investigation 14 | . 3 . 3 . . . 1 1 . . . . . . 3 . . . . 3 . . . . . Extermination 15 | . . . . . . . . 3 . . . . 7 . 5 . . . . . . . . . . Reinforcement 20 | . 2 . 3 1 . . 3 4 . . . . 2 . 3 . . . . 1 . . . . 1 Assault 1 | . . . . . . . . 1 . . . . . . . . . . . . . . . . . Garrison 6 | . . . . . . . . 3 . . . . . . 3 . . . . . . . . . . Intercept . | . . . . . . . . . . . . . . . . . . . . . . . . . . Construction Impeded 5 | . . . 1 1 . . 1 . . . . . 1 . . . . . . 1 . . . . . Haulers Reinforced 2 | . . . . . . . . 2 . . . . . . . . . . . . . . . . . Cargo Convoy Interrupts . | . . . . . . . . . . . . . . . . . . . . . . . . . . Stealth | -11 -10 -10 -9 -9 -9 -8 -8 -7 -7 -7 -7 -6 -6 -6 -6 -6 -6 -6 -5 -5 -5 -5 -5 -4 -4 --------- Run | Scr Mat Min Mat Min Exi Min Mat Fac Low Low Zio Pro Fac Was Fac Low Low Dat Pro Fac Upp Upp War Pro Fac Distress Signals 12 | . 1 . 3 . . . 2 2 . . . . . . 1 . . . . . . . 3 . . Communications Jammed . | . . . . . . . . . . . . . . . . . . . . . . . . . . Distress Signals . | . . . . . . . . . . . . . . . . . . . . . . . . . . Times Spotted 410 | . 29 16 47 7 . 3 48 56 11 1 . 9 19 6 29 4 11 4 7 2 3 5 71 10 12 Peak Tracking Total 17 | . 5 6 6 3 . 3 4 9 5 1 . 5 3 2 5 4 4 4 3 2 2 4 17 8 11 Tactical Retreats 15 | . 2 1 . 1 . . . 2 . . . 2 1 . 1 . . . . . . 1 2 2 . Traps | -11 -10 -10 -9 -9 -9 -8 -8 -7 -7 -7 -7 -6 -6 -6 -6 -6 -6 -6 -5 -5 -5 -5 -5 -4 -4 ------- Run | Scr Mat Min Mat Min Exi Min Mat Fac Low Low Zio Pro Fac Was Fac Low Low Dat Pro Fac Upp Upp War Pro Fac Traps Triggered 18 | . 2 . . . . . 3 1 . . . . 3 . 6 . . . . 1 . . 1 . 1 Indirectly . | . . . . . . . . . . . . . . . . . . . . . . . . . . Trap Hack Attempts . | . . . . . . . . . . . . . . . . . . . . . . . . . . Triggered . | . . . . . . . . . . . . . . . . . . . . . . . . . . Disarmed . | . . . . . . . . . . . . . . . . . . . . . . . . . . Reprogrammed . | . . . . . . . . . . . . . . . . . . . . . . . . . . Reused . | . . . . . . . . . . . . . . . . . . . . . . . . . . Traps Extracted . | . . . . . . . . . . . . . . . . . . . . . . . . . . Installed 3 | . . . . . . . . . . . . . . . . . . . . . 3 . . . . Triggered 28 | . . . . . . . . . 1 2 . . . . . . . . . . 2 1 22 . . Machines | -11 -10 -10 -9 -9 -9 -8 -8 -7 -7 -7 -7 -6 -6 -6 -6 -6 -6 -6 -5 -5 -5 -5 -5 -4 -4 ---------- Run | Scr Mat Min Mat Min Exi Min Mat Fac Low Low Zio Pro Fac Was Fac Low Low Dat Pro Fac Upp Upp War Pro Fac Machines Disabled 11 | . . 1 2 . . . 2 . . . . . 3 . . . . . . 1 . . 2 . . Max in Single Turn 2 | . . 1 1 . . . 1 . . . . . 2 . . . . . . 1 . . 1 . . Machines Sabotaged . | . . . . . . . . . . . . . . . . . . . . . . . . . . Garrisons Compromised . | . . . . . . . . . . . . . . . . . . . . . . . . . . Overloaded Fab Kills . | . . . . . . . . . . . . . . . . . . . . . . . . . . Fab Network Shutdowns 2 | . . . . . . . . 1 . . . . . . . . . . . 1 . . . . . Hacking | -11 -10 -10 -9 -9 -9 -8 -8 -7 -7 -7 -7 -6 -6 -6 -6 -6 -6 -6 -5 -5 -5 -5 -5 -4 -4 --------- Run | Scr Mat Min Mat Min Exi Min Mat Fac Low Low Zio Pro Fac Was Fac Low Low Dat Pro Fac Upp Upp War Pro Fac Machines Accessed 75 | . 6 . 16 . 1 2 11 8 1 . 1 . 9 . 8 . . 4 . 4 . . 2 . 2 Terminals 48 | . 5 . 11 . . 2 8 5 . . . . 7 . 5 . . . . 3 . . . . 2 Fabricators 8 | . . . . . . . . 2 . . . . 2 . 3 . . . . 1 . . . . . Repair Stations 3 | . . . 2 . . . 1 . . . . . . . . . . . . . . . . . . Recycling Units 4 | . 1 . 2 . . . 1 . . . . . . . . . . . . . . . . . . Scanalyzers 3 | . . . 1 . . . 1 1 . . . . . . . . . . . . . . . . . Garrison Access . | . . . . . . . . . . . . . . . . . . . . . . . . . . Total Hacks 266 | . 20 . 49 . 5 6 44 20 1 . 5 . 32 . 26 . . 28 . 18 . . 2 . 10 Successful 185 | . 13 . 34 . 5 2 32 11 1 . 5 . 20 . 12 . . 28 . 12 . . 2 . 8 Failed 81 | . 7 . 15 . . 4 12 9 . . . . 12 . 14 . . . . 6 . . . . 2 Catastrophic 7 | . 1 . . . . . . 1 . . . . 2 . 3 . . . . . . . . . . Database Lockouts . | . . . . . . . . . . . . . . . . . . . . . . . . . . Manual 124 | . 12 . 28 . 1 6 21 7 . . . . 17 . 14 . . . . 9 . . 1 . 8 Terminals 174 | . 19 . 39 . . 6 30 12 . . . . 26 . 17 . . . . 15 . . . . 10 Fabricators 22 | . . . . . . . . 4 . . . . 6 . 9 . . . . 3 . . . . . Repair Stations 15 | . . . 6 . . . 9 . . . . . . . . . . . . . . . . . . Recycling Units 4 | . 1 . 2 . . . 1 . . . . . . . . . . . . . . . . . . Scanalyzers 10 | . . . 2 . . . 4 4 . . . . . . . . . . . . . . . . . Garrison Access . | . . . . . . . . . . . . . . . . . . . . . . . . . . Terminal Hacks 107 | . 7 . 15 . 5 1 12 4 1 . 5 . 12 . 3 . . 28 . 6 . . 2 . 6 Record 16 | . . . . . 5 . . . . . . . . . . . . 11 . . . . . . . Part Schematic 16 | . . . . . . . 1 . . . 5 . . . . . . 7 . . . . . . 3 Robot Schematic 7 | . . . . . . . . . . . . . . . . . . 7 . . . . . . . Prototype ID Bank 3 | . . . . . . . . . . . . . . . . . . 3 . . . . . . . Open Door 3 | . . . . . . . . . 1 . . . . . . . . . . . . . 2 . . Branch Access Points 6 | . 1 . . . . . . 1 . . . . 1 . 1 . . . . 1 . . . . 1 Terminal Index 5 | . 1 . . . . . 1 . . . . . 2 . 1 . . . . . . . . . . Fabricator Index 2 | . . . . . . . . . . . . . 1 . 1 . . . . . . . . . . Repair Station Index 2 | . . . . . . . . 1 . . . . 1 . . . . . . . . . . . . Scanalyzer Index 2 | . . . . . . . 1 . . . . . 1 . . . . . . . . . . . . Alert Level 12 | . 1 . 4 . . 1 2 . . . . . 1 . . . . . . 2 . . . . 1 Unreport Threat 7 | . . . 1 . . . 2 2 . . . . 2 . . . . . . . . . . . . Locate Traps 2 | . 1 . . . . . . . . . . . . . . . . . . 1 . . . . . Maintenance Status 1 | . 1 . . . . . . . . . . . . . . . . . . . . . . . . Transport Status 1 | . . . . . . . 1 . . . . . . . . . . . . . . . . . . Recall Investigation 2 | . 1 . 1 . . . . . . . . . . . . . . . . . . . . . . Hauler Manifests 6 | . 1 . 2 . . . 1 . . . . . 1 . . . . . . 1 . . . . . Registered Components 1 | . . . 1 . . . . . . . . . . . . . . . . . . . . . . Zone Layout 13 | . . . 6 . . . 3 . . . . . 2 . . . . . . 1 . . . . 1 Fabricator Hacks 13 | . . . . . . . . 2 . . . . 3 . 5 . . . . 3 . . . . . Load Schematic 5 | . . . . . . . . . . . . . 1 . 3 . . . . 1 . . . . . Build 8 | . . . . . . . . 2 . . . . 2 . 2 . . . . 2 . . . . . Repair Station Hacks 14 | . . . 6 . . . 8 . . . . . . . . . . . . . . . . . . Scan Component 7 | . . . 3 . . . 4 . . . . . . . . . . . . . . . . . . Repair 7 | . . . 3 . . . 4 . . . . . . . . . . . . . . . . . . Recycling Unit Hacks 1 | . . . . . . . 1 . . . . . . . . . . . . . . . . . . Retrieve Components 1 | . . . . . . . 1 . . . . . . . . . . . . . . . . . . Scanalyzer 9 | . . . 1 . . . 4 4 . . . . . . . . . . . . . . . . . Insert Component 5 | . . . 1 . . . 2 2 . . . . . . . . . . . . . . . . . Analyze 4 | . . . . . . . 2 2 . . . . . . . . . . . . . . . . . Garrison Access Hacks . | . . . . . . . . . . . . . . . . . . . . . . . . . . Unauthorized Hacks 41 | . 6 . 12 . . 1 7 1 . . . . 5 . 4 . . . . 3 . . . . 2 Terminals 36 | . 5 . 10 . . 1 6 1 . . . . 5 . 3 . . . . 3 . . . . 2 Assimilate 4 | . . . . . . . . 1 . . . . 1 . 1 . . . . 1 . . . . . Botnet 32 | . 5 . 10 . . 1 6 . . . . . 4 . 2 . . . . 2 . . . . 2 Fabricators 1 | . . . . . . . . . . . . . . . 1 . . . . . . . . . . Prioritize 1 | . . . . . . . . . . . . . . . 1 . . . . . . . . . . Repair Stations 1 | . . . . . . . 1 . . . . . . . . . . . . . . . . . . Mechanics 1 | . . . . . . . 1 . . . . . . . . . . . . . . . . . . Recycling Units 3 | . 1 . 2 . . . . . . . . . . . . . . . . . . . . . . Tunnel 3 | . 1 . 2 . . . . . . . . . . . . . . . . . . . . . . Scanalyzers . | . . . . . . . . . . . . . . . . . . . . . . . . . . Garrison Access . | . . . . . . . . . . . . . . . . . . . . . . . . . . Data Cores Recovered . | . . . . . . . . . . . . . . . . . . . . . . . . . . Used . | . . . . . . . . . . . . . . . . . . . . . . . . . . Hacking Detections 56 | . 5 . 12 . . 1 8 7 . . . . 9 . 8 . . . . 4 . . . . 2 Full Trace Events 10 | . 2 . 1 . . . . 1 . . . . . . 3 . . . . 3 . . . . . Feedback Events 1 | . . . . . . . . . . . . . . . . . . . . 1 . . . . . Corruption 1 | . . . . . . . . . . . . . . . . . . . . 1 . . . . . Feedback Blocked . | . . . . . . . . . . . . . . . . . . . . . . . . . . Robot Schematics Acquired 7 | . . . . . . . . . . . . . . . . . . 7 . . . . . . . Robots Built . | . . . . . . . . . . . . . . . . . . . . . . . . . . Matter . | . . . . . . . . . . . . . . . . . . . . . . . . . . Time . | . . . . . . . . . . . . . . . . . . . . . . . . . . Total Robot Build Rating . | . . . . . . . . . . . . . . . . . . . . . . . . . . Part Schematics Acquired 20 | . . . . . . . 3 2 . . 5 . . . . . . 7 . . . . . . 3 Parts Built 14 | . . . . . . . . 4 . . . . 4 . 2 . . . . 4 . . . . . Matter 1608 | . . . . . . . . 380 . . . . 336 . 468 . . . . 424 . . . . . Time 427 | . . . . . . . . 62 . . . . 84 . 175 . . . . 106 . . . . . Total Part Build Rating 74 | . . . . . . . . 20 . . . . 16 . 14 . . . . 24 . . . . . Parts Repaired 7 | . . . 3 . . . 4 . . . . . . . . . . . . . . . . . . Time 206 | . . . 96 . . . 110 . . . . . . . . . . . . . . . . . . Parts Recycled . | . . . . . . . . . . . . . . . . . . . . . . . . . . Recycled Matter . | . . . . . . . . . . . . . . . . . . . . . . . . . . Retrieved Matter . | . . . . . . . . . . . . . . . . . . . . . . . . . . Retrieved Components 9 | . . . . . . . 9 . . . . . . . . . . . . . . . . . . Parts Scanalyzed 4 | . . . . . . . 2 2 . . . . . . . . . . . . . . . . . Part Schematics Acquired 4 | . . . . . . . 2 2 . . . . . . . . . . . . . . . . . Parts Damaged 1 | . . . . . . . 1 . . . . . . . . . . . . . . . . . . Bothacking | -11 -10 -10 -9 -9 -9 -8 -8 -7 -7 -7 -7 -6 -6 -6 -6 -6 -6 -6 -5 -5 -5 -5 -5 -4 -4 ------------ Run | Scr Mat Min Mat Min Exi Min Mat Fac Low Low Zio Pro Fac Was Fac Low Low Dat Pro Fac Upp Upp War Pro Fac Used RIF Installer . | . . . . . . . . . . . . . . . . . . . . . . . . . . Robots Hacked 1 | . . . . . . . . . . . . . 1 . . . . . . . . . . . . Non-combat 1 | . . . . . . . . . . . . . 1 . . . . . . . . . . . . Combat . | . . . . . . . . . . . . . . . . . . . . . . . . . . Robot Hacks Applied 1 | . . . . . . . . . . . . . 1 . . . . . . . . . . . . find_chute 1 | . . . . . . . . . . . . . 1 . . . . . . . . . . . . Relay Couplers Released . | . . . . . . . . . . . . . . . . . . . . . . . . . . Robots Rewired 3 | . . . . . 3 . . . . . . . . . . . . . . . . . . . . Allies Hacked 1 | . . . . . . . . . . . . . . . 1 . . . . . . . . . . Hacks Repelled . | . . . . . . . . . . . . . . . . . . . . . . . . . . Allies | -11 -10 -10 -9 -9 -9 -8 -8 -7 -7 -7 -7 -6 -6 -6 -6 -6 -6 -6 -5 -5 -5 -5 -5 -4 -4 -------- Run | Scr Mat Min Mat Min Exi Min Mat Fac Low Low Zio Pro Fac Was Fac Low Low Dat Pro Fac Upp Upp War Pro Fac Total Allies 15 | . . . . 3 3 . . . . . 5 . 1 1 1 . . . . 1 . . . . . Largest Group 6 | . . . . 3 6 6 . . . . 5 5 3 1 1 . . . . 1 . . . . . Highest-Rated Group 137 | . . . . 40 64 64 . . . . 137 137 84 31 10 . . . . 10 . . . . . Highest-Rated Ally 31 | . . . . 16 16 16 . . . . 31 31 31 31 10 . . . . 10 . . . . . Total Orders 4 | . . . . . . . . . . . . . 2 . 2 . . . . . . . . . . STAY 2 | . . . . . . . . . . . . . 1 . 1 . . . . . . . . . . FOLLOW 2 | . . . . . . . . . . . . . 1 . 1 . . . . . . . . . . Ally Attacks 104 | . . . . 4 . 16 . . . . . 57 11 16 . . . . . . . . . . . Total Damage 1741 | . . . . 48 . 166 . . . . . 993 242 292 . . . . . . . . . . . Kills 14 | . . . . 1 . 2 . . . . . 9 2 . . . . . . . . . . . . Allies Corrupted . | . . . . . . . . . . . . . . . . . . . . . . . . . . Allies Melted . | . . . . . . . . . . . . . . . . . . . . . . . . . . Intel | -11 -10 -10 -9 -9 -9 -8 -8 -7 -7 -7 -7 -6 -6 -6 -6 -6 -6 -6 -5 -5 -5 -5 -5 -4 -4 ------- Run | Scr Mat Min Mat Min Exi Min Mat Fac Low Low Zio Pro Fac Was Fac Low Low Dat Pro Fac Upp Upp War Pro Fac Robot Analysis Total 116 | . . . . . . . . . . . . . . . . . . 116 . . . . . . . Derelict Logs Recovered 14 | . . 1 . 2 . . . . 1 1 2 3 . . . 1 . . 1 . 1 1 . . . Drone Launches . | . . . . . . . . . . . . . . . . . . . . . . . . . . Drone Recoveries . | . . . . . . . . . . . . . . . . . . . . . . . . . . Exploration | -11 -10 -10 -9 -9 -9 -8 -8 -7 -7 -7 -7 -6 -6 -6 -6 -6 -6 -6 -5 -5 -5 -5 -5 -4 -4 ------------- Run | Scr Mat Min Mat Min Exi Min Mat Fac Low Low Zio Pro Fac Was Fac Low Low Dat Pro Fac Upp Upp War Pro Fac Turns Passed 32472 | 115 1282 1038 3733 1202 1356 974 3084 2719 1083 747 2019 1797 3136 445 2072 560 534 265 1601 387 304 246 1513 111 149 Spaces Moved 14321 | 67 609 598 1213 444 493 359 1060 989 394 271 786 500 1266 241 1099 334 262 112 525 368 410 344 1114 155 308 Core 154 | 12 . . . . . . . . . . . . . . . . . . 29 39 . . . 5 69 Treads 8178 | 55 609 598 1213 444 493 359 1060 989 394 271 786 500 148 . . 6 6 . 247 . . . . . . Legs . | . . . . . . . . . . . . . . . . . . . . . . . . . . Wheels 3403 | . . . . . . . . . . . . . 1118 241 1099 328 256 112 249 . . . . . . Hover 2347 | . . . . . . . . . . . . . . . . . . . . 329 410 344 1114 150 . Flight 239 | . . . . . . . . . . . . . . . . . . . . . . . . . 239 Fastest Speed 45 | 50 160 160 160 260 260 260 160 160 255 255 255 255 145 145 145 160 160 145 50 50 60 60 46 50 45 Average Speed 188 | 140 160 160 248 260 260 260 241 228 255 255 255 350 184 145 150 161 162 150 252 64 60 60 55 60 46 Slowest Speed 1650 | 160 160 160 260 260 260 260 260 260 255 255 255 352 352 145 160 260 260 160 1650 80 60 60 121 62 50 Overloaded Moves 6 | . . . . . . . . . . . . . . . . . . . . . . . 6 . . Propulsion Burnouts . | . . . . . . . . . . . . . . . . . . . . . . . . . . Robots Hopped 9 | . . . . . . . . . . . . . . . . . . . . . . . . . 9 Cave-ins Triggered . | . . . . . . . . . . . . . . . . . . . . . . . . . . Exploration Rate (%) 60 | 4 96 97 85 99 90 86 92 22 52 42 83 60 29 76 28 61 35 79 72 10 64 58 82 44 14 Regions Visited 25 Branch Regions 16 Pre-discovered Areas 35 | . 1 1 2 2 1 . . . . 1 . 1 . . . . . 25 . . . 1 . . . Known Exits Taken 10 | . 1 . . . . . . 1 1 1 1 1 . . 1 1 . . 1 1 . . . . . Unknown Exits Taken 13 | 1 . 1 1 1 1 1 1 . . . . . . . . . 1 1 . . 1 1 1 1 . Scrap Searched 21 | . . 2 . 1 . 3 . . 1 1 2 5 . . . 2 . . 1 . 1 2 . . . Spaces Dug 115 | . . . 7 11 . . . . . 19 . . 11 . 4 . 18 10 13 12 . 9 . 1 . Terrain Destroyed 460 | . . 26 17 38 . . . 8 4 36 . . 45 . 4 . 59 10 13 12 . 22 165 1 . Melee 61 | . . . . . . . . . . . . . 11 . 4 . 1 10 13 12 . 9 . 1 . Projectile 7 | . . . . . . . . . . . . . . . . . . . . . . . 7 . . AOE 392 | . . 26 17 38 . . . 8 4 36 . . 34 . . . 58 . . . . 13 158 . . Terrain Rammed . | . . . . . . . . . . . . . . . . . . . . . . . . . . Walls Destroyed . | . . . . . . . . . . . . . . . . . . . . . . . . . . Machines Disabled . | . . . . . . . . . . . . . . . . . . . . . . . . . . Actions | -11 -10 -10 -9 -9 -9 -8 -8 -7 -7 -7 -7 -6 -6 -6 -6 -6 -6 -6 -5 -5 -5 -5 -5 -4 -4 --------- Run | Scr Mat Min Mat Min Exi Min Mat Fac Low Low Zio Pro Fac Was Fac Low Low Dat Pro Fac Upp Upp War Pro Fac Total 18498 | 78 790 636 1736 466 569 397 1405 1310 437 310 805 543 1984 287 1434 342 327 163 749 471 467 359 1963 166 304 Wait 2747 | . 73 1 325 2 3 37 147 165 4 25 1 34 571 8 269 1 37 21 157 70 49 1 741 3 2 Move 14281 | 66 608 597 1212 443 492 358 1059 988 393 270 785 499 1266 240 1098 333 261 111 524 367 409 343 1113 154 292 Hop 7 | . . . . . . . . . . . . . . . . . . . . . . . . . 7 Pick Up 156 | 2 13 3 34 1 2 . 14 17 7 1 7 2 17 4 6 2 1 . 7 2 2 1 11 . . Fast Attach 90 | 6 2 . 11 . 1 . 15 3 1 1 . 1 5 2 3 . . 1 . 8 2 . 25 . 3 Attach 68 | . 2 3 5 1 . . 6 9 5 1 2 1 4 3 4 1 2 3 10 2 . 1 3 . . Detach 11 | . . . . . 1 . 1 . 1 . . . . . . . . 3 4 . . . . 1 . Swap 129 | . 6 6 14 3 3 . 11 15 2 2 3 . 34 3 12 . 3 1 4 2 . . 5 . . Drop 165 | . 8 2 32 1 3 . 24 14 3 . 7 2 19 5 4 . 1 . 9 . 2 . 27 2 . Fire 628 | 4 68 24 95 14 . 1 119 95 21 10 . 4 45 22 33 5 21 . 13 . . 2 32 . . Melee 105 | . . . . . . . . . . . . . 13 . 4 . 1 23 21 20 . 11 6 6 . Ram . | . . . . . . . . . . . . . . . . . . . . . . . . . . Kick . | . . . . . . . . . . . . . . . . . . . . . . . . . . Crush 36 | . 10 . 8 1 . 1 9 4 . . . . 2 . 1 . . . . . . . . . . Escape Stasis 8 | . . . . . . . . . . . . . 8 . . . . . . . . . . . . Rewire 64 | . . . . . 64 . . . . . . . . . . . . . . . . . . . . Trap 3 | . . . . . . . . . . . . . . . . . . . . . 3 . . . . Miscellaneous . | . . . . . . . . . . . . . . . . . . . . . . . . . . Route ------- -11/Scrapyard -10/Materials (discovered 4 exits: *Mat x3 / *Min) -10/Mines (discovered 2 exits: *Mat x2) -9/Materials (discovered 5 exits: *Mat x3 / [*Min x2]) -9/Mines (discovered 4 exits: *Mat x2 / *Exi / *Zio) -9/Exiles -8/Mines -8/Materials (discovered 3 exits: *Fac x3) -7/Factory (discovered 4 exits: *Fac / Sto / *Low x2) -7/Lower Caves -7/Lower Caves (discovered 2 exits: *Fac / *Zio) -7/Zion -6/Proximity Caves -6/Factory (discovered 7 exits: *Fac x3 / Low x2 / Ext x2) -6/Waste -6/Factory (discovered 5 exits: *Fac / *Low x2 / Ext x2) -6/Lower Caves -6/Lower Caves -6/Data Miner -5/Proximity Caves -5/Factory (discovered 2 exits: *Upp x2) -5/Upper Caves -5/Upper Caves (discovered 2 exits: *Fac / *War) -5/Warlord -4/Proximity Caves -4/Factory (discovered 2 exits: Upp x2) History --------- Turn | Location | Event 2 | -11/Scrapyard | Discovered new exit (range 16) 116 | -11/Scrapyard | Entered Materials 307 | -10/Materials | Build established: Mutant 350 | -10/Materials | Discovered new exit (range 8) 535 | -10/Materials | Discovered new exit (range 14) 1029 | -10/Materials | Identified exit to Mines 1184 | -10/Materials | Discovered new exit (range 3) 1398 | -10/Materials | Entered Mines 1489 | -10/Mines | Learned Materials terminal intel 1540 | -10/Mines | Learned location of Storage (-7) 2052 | -10/Mines | Discovered new exit (range 9) 2185 | -10/Mines | Discovered new exit (range 8) 2436 | -10/Mines | Entered Materials 2436 | -9/Materials | Evolved 2 slots: Utility x1, Weapon x1 2437 | -9/Materials | Loaded intel: 12 terminal locations 2740 | -9/Materials | Build established: Scavenger-Tank 3002 | -9/Materials | Discovered new exit (range 5) 3187 | -9/Materials | Repaired Lgt. Cannon 3227 | -9/Materials | Repaired Imp. Heat Sink 3361 | -9/Materials | Discovered new exit (range 16) 4021 | -9/Materials | Repaired Med. Armor Plating 4052 | -9/Materials | Discovered new exit (range 7) 4317 | -9/Materials | Discovered new exit (range 16) 4665 | -9/Materials | Build established: Tank 4902 | -9/Materials | Discovered new exit (range 17) 6169 | -9/Materials | Entered Mines 6388 | -9/Mines | Learned location of Zion (-7) 6709 | -9/Mines | Discovered new exit (range 2) 6822 | -9/Mines | A Derelict revealed a hidden shortcut to a safe place 6938 | -9/Mines | Discovered new exit (range 5) 6951 | -9/Mines | Assisted by bots powering up and referring to "LRC-V3" 7356 | -9/Mines | Deemed a non-threat by the Exiles lab entrance 7356 | -9/Mines | Discovered new exit (range 5) 7371 | -9/Mines | Entered Exiles 7371 | -9/Exiles | Found Exiles lab destroyed 7371 | -9/Exiles | Accompanied by 3 allies 7811 | -9/Exiles | Build established: Commander-Tank 8024 | -9/Exiles | Opened EX-Vault 8035 | -9/Exiles | Found Prototype Storage 8035 | -9/Exiles | Identified Superbattery 8693 | -9/Exiles | Discovered new exit (range 14) 8727 | -9/Exiles | Entered Mines 8727 | -8/Mines | Accompanied by 6 allies 9092 | -8/Mines | Discovered new exit (range 14) 9640 | -8/Mines | Build established: Tank 9701 | -8/Mines | Entered Materials 9701 | -8/Materials | Evolved 2 slots: Propulsion x1, Utility x1 10209 | -8/Materials | Build established: Scavenger-Tank 10504 | -8/Materials | Discovered new exit (range 8) 10777 | -8/Materials | Repaired Cooling System 10804 | -8/Materials | Repaired Lgt. Treads 10832 | -8/Materials | Repaired Lgt. Treads 10859 | -8/Materials | Repaired Lgt. Treads 11147 | -8/Materials | Discovered new exit (range 15) 12725 | -8/Materials | Discovered new exit (range 10) 12785 | -8/Materials | Entered Factory 12785 | -7/Factory | Evolved 2 slots: Utility x2 12931 | -7/Factory | Fabricated Imp. Medium Treads (x2) 12967 | -7/Factory | Fabricated Imp. Medium Treads (x2) 13096 | -7/Factory | Discovered new exit (range 15) 13124 | -7/Factory | Identified exit to Lower Caves 13268 | -7/Factory | Build established: Skirmisher 13599 | -7/Factory | Local fabrication network quarantined 14085 | -7/Factory | Discovered new exit (range 11) 14129 | -7/Factory | Garrison activated, responded to threat 14272 | -7/Factory | Destroyed 12 combat bots 14341 | -7/Factory | Identified exit to Factory 14385 | -7/Factory | First assault squad dispatched 14545 | -7/Factory | Destroyed 8 combat bots 14554 | -7/Factory | Lost 5 parts (1p1n2u1w) 14830 | -7/Factory | Build established: Scavenger-Tank 15127 | -7/Factory | Identified exit to Storage 15504 | -7/Factory | Entered Lower Caves 15568 | -7/Lower Caves | Found Imp. Powered Armor 15697 | -7/Lower Caves | Identified exit to Lower Caves 16100 | -7/Lower Caves | Build established: Tank 16587 | -7/Lower Caves | Entered another Lower Caves area 16606 | -7/Lower Caves | Discovered exit to Factory (range 13) 16640 | -7/Lower Caves | Encountered a Warlord checkpoint 16863 | -7/Lower Caves | Attracted the attention of an 0b10 checkpoint 17291 | -7/Lower Caves | Discovered new exit (range 6) 17301 | -7/Lower Caves | Identified exit to Zion 17334 | -7/Lower Caves | Entered Zion 17444 | -7/Zion | System corruption cleaned by Quarantine Array 18189 | -7/Zion | Gained Derelict followers 18242 | -7/Zion | Gained Derelict followers 18931 | -7/Zion | Found Prototype Processor 18935 | -7/Zion | Found Prototype Processor 18943 | -7/Zion | Identified Exp. Terrain Scan Processor 19314 | -7/Zion | Discovered new exit (range 15) 19350 | -7/Zion | Identified exit to Proximity Caves 19353 | -7/Zion | Entered Proximity Caves 19353 | -6/Proximity Caves | Accompanied by 5 allies 19371 | -6/Proximity Caves | Spotted B-75 Beast 19384 | -6/Proximity Caves | Allies destroyed B-75 Beast 19520 | -6/Proximity Caves | Learned location of 1 exit from Factory 20599 | -6/Proximity Caves | Build established: Skirmisher 21102 | -6/Proximity Caves | Discovered exit to Factory (range 4) 21127 | -6/Proximity Caves | Learned 8 Factory zone layouts 21150 | -6/Proximity Caves | Entered Factory 21150 | -6/Factory | Accompanied by 3 allies 21150 | -6/Factory | Evolved 2 slots: Propulsion x1, Utility x1 21151 | -6/Factory | Identified exit to Extension 21152 | -6/Factory | Identified exit to Factory 21872 | -6/Factory | Discovered exit to Factory (range 9) 21874 | -6/Factory | Build established: Hacker-Skirmisher 22812 | -6/Factory | Identified exit to Lower Caves 22903 | -6/Factory | Build established: Hacker-Mutant 23547 | -6/Factory | Discovered exit to Factory (range 7) 23593 | -6/Factory | Fabricated Flak Gun (x2) 23671 | -6/Factory | Fabricated Flak Gun (x2) 23920 | -6/Factory | Build established: Hacker-Skirmisher 24286 | -6/Factory | Sucked down chute 24286 | -6/Factory | Entered Waste 24287 | -6/Waste | Met a frightened Derelict 24301 | -6/Waste | EMP discharged 24330 | -6/Waste | Destroyed C-40 Crusher 24335 | -6/Waste | Spotted C-40 Crusher 24344 | -6/Waste | Destroyed C-40 Crusher 24354 | -6/Waste | Destroyed C-40 Crusher 24363 | -6/Waste | Spotted C-40 Crusher 24377 | -6/Waste | Spotted C-40 Crusher 24390 | -6/Waste | Destroyed C-40 Crusher 24401 | -6/Waste | EMP discharged 24401 | -6/Waste | System corruption reached 10% 24443 | -6/Waste | Spotted C-40 Crusher 24501 | -6/Waste | EMP discharged 24515 | -6/Waste | Destroyed C-40 Crusher 24533 | -6/Waste | Discovered new exit (range 16) 24557 | -6/Waste | Crushed by Compactor (1 part destroyed, 2 dropped) 24561 | -6/Waste | Identified exit to Factory 24573 | -6/Waste | Destroyed C-40 Crusher 24601 | -6/Waste | EMP discharged 24701 | -6/Waste | EMP discharged 24701 | -6/Waste | System corruption reached 30% 24731 | -6/Waste | Entered Factory 24881 | -6/Factory | Build established: Gunner 25343 | -6/Factory | Discovered exit to Lower Caves (range 3) 25468 | -6/Factory | Fabricated Mak. Sensor Array (x1) 25696 | -6/Factory | Fabricated Mak. Sensor Array? 25728 | -6/Factory | Discovered exit to Factory (range 5) 25741 | -6/Factory | Garrison activated, responded to threat 25832 | -6/Factory | Assembled infested ambush trap array 26803 | -6/Factory | Entered Lower Caves 26951 | -6/Lower Caves | Encountered a Warlord checkpoint 27054 | -6/Lower Caves | Learned Factory interactive machine intel 27356 | -6/Lower Caves | Discovered new exit (range 5) 27361 | -6/Lower Caves | Identified exit to Lower Caves 27363 | -6/Lower Caves | Entered another Lower Caves area 27494 | -6/Lower Caves | Encountered a Warlord checkpoint 27886 | -6/Lower Caves | Discovered new exit (range 7) 27897 | -6/Lower Caves | Entered Data Miner 27899 | -6/Data Miner | Discovered new exit (range 6) 27927 | -6/Data Miner | Met Data Miner 27957 | -6/Data Miner | Learned location of Section 7 (-2) 27957 | -6/Data Miner | Acquired the access code to Warlord's prototype stash 27982 | -6/Data Miner | Received God Mode back door access code from Data Miner 28012 | -6/Data Miner | Interfaced with the Data Conduit 28012 | -6/Data Miner | Identified Exp. Armor Integrity Analyzer 28093 | -6/Data Miner | Build established: Mutant 28162 | -6/Data Miner | Entered Proximity Caves 28184 | -5/Proximity Caves | Lost 3 parts (1p1n1u) 28265 | -5/Proximity Caves | Learned Factory machine intel 28445 | -5/Proximity Caves | Build established: Hacker-Mutant 28511 | -5/Proximity Caves | Spotted B-75 Beast 28673 | -5/Proximity Caves | Destroyed B-75 Beast 29447 | -5/Proximity Caves | Lost 3 parts (1n2u) 29578 | -5/Proximity Caves | Discovered exit to Factory (range 10) 29763 | -5/Proximity Caves | Entered Factory 29763 | -5/Factory | Evolved 2 slots: Utility x1, Weapon x1 29764 | -5/Factory | Loaded intel: 266 machine locations 29765 | -5/Factory | Loaded intel: 45 interactive machine locations 29845 | -5/Factory | Fabricated Cmb. Gravmag System (x2) 29939 | -5/Factory | Fabricated Cmb. Gravmag System (x2) 30003 | -5/Factory | Identified exit to Upper Caves 30068 | -5/Factory | Local fabrication network quarantined 30150 | -5/Factory | Entered Upper Caves 30450 | -5/Upper Caves | Discovered new exit (range 7) 30454 | -5/Upper Caves | Entered another Upper Caves area 30504 | -5/Upper Caves | Discovered new exit (range 15) 30561 | -5/Upper Caves | Encountered a Warlord checkpoint 30618 | -5/Upper Caves | Spotted B-75 Beast 30648 | -5/Upper Caves | Discovered new exit (range 10) 30700 | -5/Upper Caves | Entered Warlord 30720 | -5/Warlord | System corruption cleaned by Quarantine Array 30881 | -5/Warlord | Met Warlord 30887 | -5/Warlord | Opened Warlord's prototype stash 30890 | -5/Warlord | Found Exp. Phase Shifter 30903 | -5/Warlord | Found System Purifier 30906 | -5/Warlord | Warlord's base attacked by MAIN.C 30911 | -5/Warlord | Found Vortex Chain Reactor 31016 | -5/Warlord | Found Prototype Piercing Weapon 31016 | -5/Warlord | Identified Vortex Lance 31020 | -5/Warlord | Found Prototype Launcher 31020 | -5/Warlord | Identified Vortex Catalyst Activator 31030 | -5/Warlord | Found Prototype Energy Gun 31030 | -5/Warlord | Identified Vortex Rifle 31037 | -5/Warlord | Found Vortex Rifle 31046 | -5/Warlord | Found Vortex Lance 31159 | -5/Warlord | P-70 Sage assimilated allied X6-Q6I(Y) 31252 | -5/Warlord | Spotted Striker 31256 | -5/Warlord | Warlord forces counterattacked 31308 | -5/Warlord | Spotted Striker 31935 | -5/Warlord | Spotted Executioner 32002 | -5/Warlord | Spotted Executioner 32031 | -5/Warlord | Spotted Executioner 32042 | -5/Warlord | Found Adv. Kinecellerator 32051 | -5/Warlord | Found Corrupted Exp. Targeting Computer 32104 | -5/Warlord | Spotted Striker 32106 | -5/Warlord | Destroyed Striker 32149 | -5/Warlord | Destroyed 13 combat bots 32175 | -5/Warlord | Opened side exit 32199 | -5/Warlord | Spotted Executioner 32200 | -5/Warlord | Spotted Executioner 32206 | -5/Warlord | Discovered new exit (range 12) 32213 | -5/Warlord | Entered Proximity Caves 32234 | -4/Proximity Caves | Lost 3 parts (1p2u) 32235 | -4/Proximity Caves | Attracted the attention of an 0b10 checkpoint 32322 | -4/Proximity Caves | Discovered new exit (range 4) 32324 | -4/Proximity Caves | Entered Factory 32324 | -4/Factory | Evolved 2 slots: Utility x2 32325 | -4/Factory | Loaded intel: 252 machine locations 32352 | -4/Factory | Identified exit to Upper Caves 32354 | -4/Factory | Lost 3 parts (2n1u) 32441 | -4/Factory | Spotted B-86 Titan 32473 | -4/Factory | Self-destructed Last Messages --------------- 32440_ ALERT: Hostiles spotted, dispatching reinforcements to Terminal F012. 32442_ C-30 ARC bursts open, deploying its payload. 32442_ P-70 Sage unfolds itself. 32442_ Penetrated by Slug. 32442_ Slug penetrates Wall. 32442_ Acquired 4 matter. 32445_ U-05 Engineer builds a Wall. 32450_ Slug penetrates Wall. 32461_ Triggered Hellfire Trap. 32461_ An explosion rips through the floor. 32461_ Fusion Modulator explodes. 32461_ Terminal disabled. 32461_ R-10 Processor destroyed. 32461_ A-15 Conveyor destroyed. 32462_ Penetrated by Slug. 32465_ Imp. Medium Armor Plating destroyed. 32465_ Slug penetrates Wall. 32466_ Hacking Suite destroyed. 32468_ Field Propulsion Drive destroyed. Map ----- +----------------------------------------------------+ | ????????????????""G""??# ## #######+#### | | ?????????????????"?"???# """" ###### # | | ???????????????????????#??"""" ""#??# # | | ??????????????????????????"""" F"#??# # | | ??????????????????????????"""" "#??# ! # | | ??????????????????????????"""" ""#??#########"" | | ??????????????????????????"""" ######### | | ??????????????????????????"""" # # """ | | ???????????????????????????? # """"" # "T | | ???????????????????????????? # "" F" # | | ?????""""??????????????????? # "" "" #!! | | ?????""""???????????????????#?# # # ! | | ?????""""????"""?"""??????????# # # | | ?????""""????"""?"""??????????# + # | | ?????""""????"""?"""??????????# #???????# | | ?????""""???????????????????### ###?????# | | ??????????????"""T"""???????# #?????# | | ????????????????????????????# #?????# = | | ????????????????????????????# ######### | | ???"""??????????????????????# | | ???"""??????????????????????# ############## | | ???"""??????????????????????# #????????????? | | ????????????????????????????# #????????????? | | ????????????????????????????## ##??????????""" | | ??????????????????????######## #?????????""""" | | ??????????????????????# @ #?????????""""" | | ??????????????????????# +?""""????????? | | ??????????????????????# #?""""???""???? | | ??????????????????????# #?""""??"""???? | | ??????????????????????# #?""""??"F????? | | ??????????????????????# ### #?""""??"""???? | | ??????????????????????# #?# #?""""???""???? | | ???"""????????????????# #?# +?""""????????? | | ???"""????????????????+ #?# ##?????????????? | | "??"""????????????????# #?# #??????????????? | | S?????????????????????# #?## ##??????????????? | | ??????????????????????# #???+#???????????????? | | ??????????????????????# #????????????????????? | | ??????????????????????# #?"""""""?"""""""????? | | ??????????????????????# #?"""""""?"""""""????? | | ??????????????????????# ??"""""""?"""""""????? | | ???????????????????????? ??"""""""?"""""""????? | | ????""???????????????????????????????????????????? | | ????T????????????????????????????????????????????? | | ?????????????????????????????????????????????????? | | ?????????????????????????????????????????????????? | | ?????????????????????????????????????????????????? | | "??????????????????""""?""""?""""????????????????? | | "???"""????????????""""?""""?""""????????????????? | | "???"T"????????????""""?""""?""""????????????????? | +----------------------------------------------------+ Best States ------------- Heat Dissipation 71 Energy Generation 23 Energy Capacity 1815 Matter Stores 300 Matter Capacity 300 Sight Range 16 Robot Scan Range 19 Terrain Scan Density 10 Jamming Range 12 Armor Coverage 625 Phase Shifting 20 Evasion (%) 65 Targeting Accuracy 20 Armor Integrity Analysis 40 Recoil Reduction 3 Offensive Hacking 31 Defensive Hacking 14 Item Schematics ----------------- Enh. Autogun | -8/Materials | Scanalyzed Mak. Sensor Array | -8/Materials | Scanalyzed Huge Storage Unit | -8/Materials | Hacked Flak Gun | -7/Factory | Scanalyzed Adv. Targeting Computer | -7/Factory | Scanalyzed Riot Gun | -7/Zion | Free Battle Cannon | -7/Zion | Free Bore Cannon | -7/Zion | Free Flamer | -7/Zion | Free Enh. Flamer | -7/Zion | Free Combat Drone Bay | -6/Data Miner | Free Lgt. Regenerative Plating | -6/Data Miner | Free Cmb. Gravmag System | -6/Data Miner | Free Tactical Coordination Suite | -6/Data Miner | Free Exp. ECM Suite | -6/Data Miner | Free Mni. Smartbomb Launcher | -6/Data Miner | Free Kinetic Spear | -6/Data Miner | Free Adv. Hacking Suite | -4/Factory | Hacked Adv. Signal Interpreter | -4/Factory | Hacked Cld. Nuclear Pulse Thruster | -4/Factory | Hacked Robot Schematics ------------------ S-27 Virus | -6/Data Miner | Free G-50 Soldier | -6/Data Miner | Free L-41 Fighter | -6/Data Miner | Free X-72 Disruptor | -6/Data Miner | Free P-70 Sage | -6/Data Miner | Free I-36 Angel | -6/Data Miner | Free I-47 Archangel | -6/Data Miner | Free Fabricated ------------ Imp. Medium Treads | x2 | -7/Factory | Preloaded Imp. Medium Treads | x2 | -7/Factory | Preloaded Flak Gun | x2 | -6/Factory Flak Gun | x2 | -6/Factory Mak. Sensor Array | x1 | -6/Factory Mak. Sensor Array | x1 | -6/Factory Cmb. Gravmag System | x2 | -5/Factory Cmb. Gravmag System | x2 | -5/Factory Alien Tech Used ----------------- None Achievements -------------- None Challenges ------------ None Game ------ Seed FluxLatentInsulator Manual? 0 Play Time 02:29:24 Cumulative 1202.3 hours Start 2021.05.24 @ 20:14:50 End 2021.05.24 @ 22:50:37 Sessions 1 Manual Loads 0 Difficulty Rogue Special Mode None Game No. 410 Rogue 410 Adventurer 0 Explorer 0 Win Type - Total 88 Types 17/12/37/5/1/2/12/1/1 Lore% 97 Gallery% 96 Achievement% 85 Wizard Run 0 Options --------- ASCII 0 Keyboard 0 Movement Numpad Keybinds 0 Fullscreen 1 Font 18/SmallcapsGlow Map View 76x50 Tactical HUD 1 Map Filters NONE Filters NONE Steam 1 RUN: 6de20bb0-2f13-4231-a02d-da19a0839e1c